[Event "2nd Gujarat Open 2019"]
[Site "Ahmedabad, Gujarat"]
[Date "2019.09.28"]
[Round "9.6"]
[White "Das, Sayantan"]
[Black "Abu Sufian, Shakil"]
[Result "1-0"]
[ECO "B18"]
[WhiteElo "2434"]
[BlackElo "2255"]
[Annotator "NA"]
[PlyCount "145"]
[EventDate "2019.09.22"]
[EventType "swiss"]
[EventCountry "IND"]
[SourceTitle "playchess.com"]
[Source "ChessBase"]
[SourceQuality "1"]
[TimeControl "5400+30"]

1. e4 {[%emt 0:00:00]} c6 {[%emt 0:00:00]} 2. d4 {[%emt 0:00:20]} d5 {[%emt 0:00:00]} 3. Nd2 {[%emt 0:00:08]} dxe4 {[%emt 0:00:00]} 4. Nxe4 {[%emt 0:00:04]} Bf5 {[%emt 0:00:00]} 5. Ng3 {[%emt 0:00:06]} Bg6 {[%emt 0:00:00]} 6. h4 {[%emt 0:00:15]} h6 {[%emt 0:00:00]} 7. Nf3 {[%emt 0:00:10]} e6 {[%emt 0:00:22]} 8. Ne5 {[%emt 0:00:37]} Bh7 {[%emt 0:00:03]} 9. Bd3 {[%emt 0:00:16]} Bxd3 {[%emt 0:00:04]} 10. Qxd3 {[%emt 0:00:05]} Nd7 {[%emt 0:00:25]} 11. Qe2 {[%emt 0:00:35]} Ngf6 {[%emt 0:04:37]} 12. Bd2 {[%emt 0:00:40]} Qc7 {[%emt 0:02:23]} 13. O-O-O {[%emt 0:01:09]} Bd6 {[%emt 0:00:27]} 14. Nf5 {[%emt 0:13:44]} exf5 {[%emt 0:11:29]} 15. Ng6+ {[%emt 0:04:59]} Ne4 {[%emt 0:00:24]} 16. Nxh8 {[%emt 0:00:11]} Kf8 {[%emt 0:00:11]} 17. Be1 {[%emt 0:18:43]} Kg8 {[%emt 0:11:14]} 18. Nxf7 {[%emt 0:03:40]} Kxf7 {[%emt 0:00:02]} 19. Qc4+ {[%emt 0:00:25]} Kf6 {[%emt 0:05:18]} 20. g4 {[%emt 0:10:17]} fxg4 {[%emt 0:06:55]} 21. Qe2 {[%emt 0:09:12]} Re8 {[%emt 0:00:23]} 22. Qxg4 {[%emt 0:00:17]} Nf8 {[%emt 0:09:24]} 23. d5 {[%emt 0:08:09]} Kf7 {[%emt 0:07:02]} 24. dxc6 {[%emt 0:01:40]} bxc6 {[%emt 0:00:40]} 25. Qh5+ {[%emt 0:11:03]} g6 {[%emt 0:00:30]} 26. Qf3+ {[%emt 0:01:30]} Kg7 {[%emt 0:00:26]} 27. Kb1 {[%emt 0:00:41]} h5 {[%emt 0:08:39]} 28. Qd3 {[%emt 0:03:21]} Kh7 {[%emt 0:00:42]} 29. Rh3 {[%emt 0:03:29]} Bf4 {[%emt 0:15:06]} 30. Qc4 {[%emt 0:01:49]} Nf6 {[%emt 0:04:35]} 31. Ba5 {[%emt 0:04:45]} Qxa5 {[%emt 0:00:18]} 32. Qxf4 {[%emt 0:00:29]} Qe5 {[%emt 0:03:14]} 33. Qa4 {[%emt 0:02:20]} Qc5 {[%emt 0:03:17]} 34. Rf3 {[%emt 0:01:01]} Kg7 {[%emt 0:00:09]} 35. a3 {[%emt 0:00:36]} Nd5 {[%emt 0:01:05]} 36. Qb3 {[%emt 0:00:27]} Re7 {[%emt 0:01:33]} 37. Qd3 {[%emt 0:00:36]} Ne6 {[%emt 0:00:50]} 38. Re1 {[%emt 0:00:18]} Nef4 {[%emt 0:00:09]} 39. Rxe7+ {[%emt 0:00:35]} Qxe7 {[%emt 0:00:02]} 40. Qd4+ {[%emt 0:00:07]} Kh7 {[%emt 0:00:56]} 41. Rxf4 {[%emt 0:00:12]} Nxf4 {[%emt 0:00:11]} 42. Qxf4 {[%emt 0:00:02]} c5 {[%emt 0:00:30]} 43. b3 {[%emt 0:00:42]} Kg7 {[%emt 0:01:28]} 44. a4 {[%emt 0:00:21]} a5 {[%emt 0:00:49]} 45. Ka2 {[%emt 0:01:07]} Kh7 {[%emt 0:00:35]} 46. Qg3 {[%emt 0:00:50]} Qg7 {[%emt 0:03:42]} 47. f4 {[%emt 0:00:48]} Qd4 {[%emt 0:01:17]} 48. Qg5 {[%emt 0:00:31]} Qe3 {[%emt 0:01:02]} 49. Qf6 {[%emt 0:00:28]} Qf2 {[%emt 0:00:33]} 50. Kb2 {[%emt 0:00:35]} Qe3 {[%emt 0:00:32]} 51. f5 {[%emt 0:00:19]} gxf5 {[%emt 0:00:08]} 52. Qxf5+ {[%emt 0:00:04]} Kh6 {[%emt 0:00:04]} 53. Qf6+ {[%emt 0:00:06]} Kh7 {[%emt 0:00:03]} 54. Qc3 {[%emt 0:01:00]} Qe7 {[%emt 0:00:54]} 55. Qd3+ {[%emt 0:00:54]} Kh6 {[%emt 0:00:22]} 56. Qd2+ {[%emt 0:00:03]} Kg6 {[%emt 0:00:06]} 57. Qf4 {[%emt 0:00:23]} Kh7 {[%emt 0:01:22]} 58. Ka2 {[%emt 0:00:33]} Kg6 {[%emt 0:00:15]} 59. Qg3+ {[%emt 0:00:16]} Kh6 {[%emt 0:00:18]} 60. Qf2 {[%emt 0:00:37]} Kg6 {[%emt 0:00:14]} 61. Qf4 {[%emt 0:00:43]} Kh7 {[%emt 0:00:19]} 62. Kb1 {[%emt 0:00:34]} Kg6 {[%emt 0:00:15]} 63. Qg3+ {[%emt 0:00:15]} Kh6 {[%emt 0:00:15]} 64. Ka2 {[%emt 0:00:33]} Kh7 {[%emt 0:00:54]} 65. Qd3+ {[%emt 0:00:06]} Kh6 {[%emt 0:00:21]} 66. Qd2+ {[%emt 0:00:05]} Kg6 {[%emt 0:01:00]} 67. Qxa5 {[%emt 0:00:30]} Qxh4 {[%emt 0:00:10]} 68. Qb6+ {[%emt 0:00:15]} Kg7 {[%emt 0:00:20]} 69. Qxc5 {[%emt 0:00:08]} Qg4 {[%emt 0:01:23]} 70. a5 {[%emt 0:00:21]} h4 {[%emt 0:00:45]} 71. a6 {[%emt 0:00:33]} h3 {[%emt 0:00:04]} 72. a7 {[%emt 0:00:31]} Qg2 {[%emt 0:00:02]} 73. Qc8 {[%emt 0:00:35]} 1-0

[Event "2nd Gujarat Open 2019"]
[Site "Ahmedabad, Gujarat"]
[Date "2019.09.28"]
[Round "9.7"]
[White "Karthikeyan, P.."]
[Black "Manik, Mikulas"]
[Result "1/2-1/2"]
[ECO "B08"]
[WhiteElo "2408"]
[BlackElo "2375"]
[Annotator "NA"]
[PlyCount "62"]
[EventDate "2019.09.22"]
[EventType "swiss"]
[EventCountry "IND"]
[SourceTitle "playchess.com"]
[Source "ChessBase"]
[SourceQuality "1"]
[TimeControl "5400+30"]

1. Nf3 {[%emt 0:01:40]} d6 {[%emt 0:00:56]} 2. d4 {[%emt 0:02:55]} Nf6 {[%emt 0:00:18]} 3. Nc3 {[%emt 0:00:05]} g6 {[%emt 0:01:04]} 4. e4 {[%emt 0:00:04]} Bg7 {[%emt 0:00:14]} 5. Be2 {[%emt 0:00:30]} O-O {[%emt 0:00:26]} 6. h3 {[%emt 0:00:42]} c5 {[%emt 0:01:08]} 7. d5 {[%emt 0:07:27]} b5 {[%emt 0:03:20]} 8. Nxb5 {[%emt 0:03:14]} Nxe4 {[%emt 0:01:02]} 9. O-O {[%emt 0:00:54]} Bb7 {[%emt 0:17:33]} 10. Re1 {[%emt 0:01:26]} a6 {[%emt 0:12:32]} 11. Na3 {[%emt 0:01:06]} e5 {[%emt 0:00:15]} 12. Nc4 {[%emt 0:03:35]} f5 {[%emt 0:04:44]} 13. Bd3 {[%emt 0:02:34]} Nf6 {[%emt 0:08:33]} 14. Ng5 {[%emt 0:01:41]} Re8 {[%emt 0:17:28]} 15. Ne6 {[%emt 0:02:23]} Qe7 {[%emt 0:00:02]} 16. f4 {[%emt 0:10:50]} e4 {[%emt 0:01:45]} 17. Nxg7 {[%emt 0:00:35]} Kxg7 {[%emt 0:00:06]} 18. Nb6 {[%emt 0:06:10]} Ra7 {[%emt 0:11:49]} 19. Bc4 {[%emt 0:02:14]} Qc7 {[%emt 0:00:13]} 20. Na4 {[%emt 0:00:30]} Qf7 {[%emt 0:00:22]} 21. Nc3 {[%emt 0:07:05]} Nbd7 {[%emt 0:00:41]} 22. b3 {[%emt 0:00:08]} Kf8 {[%emt 0:04:27]} 23. Bb2 {[%emt 0:02:38]} Nh5 {[%emt 0:01:18]} 24. Qd2 {[%emt 0:03:44]} Nb6 {[%emt 0:03:07]} 25. a4 {[%emt 0:02:38]} Qf6 {[%emt 0:02:38]} 26. g4 {[%emt 0:05:07]} Nxc4 {[%emt 0:02:20]} 27. bxc4 {[%emt 0:00:13]} Qd4+ {[%emt 0:00:18]} 28. Qxd4 {[%emt 0:01:49]} cxd4 {[%emt 0:00:02]} 29. Ne2 {[%emt 0:03:31]} d3 {[%emt 0:00:13]} 30. cxd3 {[%emt 0:01:06]} exd3 {[%emt 0:00:15]} 31. gxh5 {[%emt 0:00:16]} d2 {[%emt 0:00:24]} 1/2-1/2

[Event "2nd Gujarat Open 2019"]
[Site "Ahmedabad, Gujarat"]
[Date "2019.09.28"]
[Round "9.9"]
[White "Pranav, V."]
[Black "Rahman, Ziaur"]
[Result "0-1"]
[ECO "B12"]
[WhiteElo "2308"]
[BlackElo "2492"]
[Annotator "ChessBase"]
[PlyCount "78"]
[EventDate "2019.09.22"]
[EventType "swiss"]
[EventCountry "IND"]
[SourceTitle "playchess.com"]
[Source "ChessBase"]
[SourceQuality "1"]
[TimeControl "5400+30"]

1. e4 {[%emt 0:00:00]} c6 {[%emt 0:02:19]} 2. d4 {[%emt 0:00:00]} d5 {[%emt 0:00:06]} 3. e5 {[%emt 0:00:00]} c5 {[%emt 0:00:53]} 4. Nf3 {[%emt 0:00:00]} cxd4 {[%emt 0:00:49]} 5. Qxd4 {[%emt 0:00:05]} e6 {[%emt 0:01:11]} 6. Bd3 {[%emt 0:01:17]} Nc6 {[%emt 0:01:12]} 7. Qf4 {[%emt 0:00:09]} f5 {[%emt 0:04:52]} 8. h4 {[%emt 0:01:58]} Nb4 {[%emt 0:04:25]} 9. Nc3 {[%emt 0:01:17]} Bd7 {[%emt 0:01:28]} 10. Be3 {[%emt 0:02:53]} Nxd3+ {[%emt 0:02:21]} 11. cxd3 {[%emt 0:00:07]} Nh6 {[%emt 0:00:34]} 12. Nh2 {[%emt 0:14:00]} Bc6 {[%emt 0:10:34]} 13. Qd4 {[%emt 0:04:03]} Be7 {[%emt 0:05:11]} 14. Bxh6 {[%emt 0:08:36]} gxh6 {[%emt 0:00:08]} 15. Ne2 {[%emt 0:11:32]} Rg8 {[%emt 0:05:43]} 16. Kf1 {[%emt 0:01:27]} Qa5 {[%emt 0:01:34]} 17. Rc1 {[%emt 0:03:07]} Qxa2 {[%emt 0:03:17]} 18. g3 {[%emt 0:04:21]} Bd8 {[%emt 0:07:21]} 19. Nf4 {[%emt 0:11:04]} Kf7 {[%emt 0:05:28]} 20. Nf3 {[%emt 0:06:02]} Qa4 {[%emt 0:13:25]} 21. Qe3 {[%emt 0:03:08]} d4 {[%emt 0:04:19]} 22. Nxd4 {[%emt 0:04:02]} Bxh1 {[%emt 0:01:25]} 23. Nfxe6 {[%emt 0:00:05]} Rc8 {[%emt 0:01:27]} 24. Re1 {[%emt 0:01:44]} Bb6 {[%emt 0:03:44]} 25. Qxh6 {[%emt 0:01:19]} Bxd4 {[%emt 0:02:03]} 26. Nxd4 {[%emt 0:00:09]} Qxd4 {[%emt 0:01:29]} 27. Qf6+ {[%emt 0:00:09]} Ke8 {[%emt 0:00:04]} 28. Qe6+ {[%emt 0:00:06]} Kd8 {[%emt 0:01:01]} 29. Qxg8+ {[%emt 0:00:48]} Kc7 {[%emt 0:00:06]} 30. Qxh7+ {[%emt 0:07:26]} Qd7 {[%emt 0:00:39]} 31. Qh6 {[%emt 0:07:11]} Qxd3+ {[%emt 0:02:16]} 32. Kg1 {[%emt 0:00:05]} Bc6 {[%emt 0:00:22]} 33. Kh2 {[%emt 0:05:43]} a5 {[%emt 0:02:34]} 34. Re3 {[%emt 0:00:57]} Qd1 {[%emt 0:01:16]} 35. f3 {[%emt 0:00:12]} Rd8 {[%emt 0:00:33]} 36. g4 {[%emt 0:00:48]} f4 {[%emt 0:01:08]} 37. Qxf4 {[%emt 0:00:28]} Rd2+ {[%emt 0:00:07]} 38. Kg3 {[%emt 0:00:04]} Qg1+ {[%emt 0:00:06]} 39. Kh3 {[%emt 0:00:03]} Qg2# 0-1

[Event "2nd Gujarat Open 2019"]
[Site "Ahmedabad, Gujarat"]
[Date "2019.09.28"]
[Round "9.10"]
[White "Bharat Kumar Reddy Poluri"]
[Black "Neelotpal, Das"]
[Result "1/2-1/2"]
[ECO "C96"]
[WhiteElo "2304"]
[BlackElo "2433"]
[Annotator "RC"]
[PlyCount "65"]
[EventDate "2019.09.22"]
[EventType "swiss"]
[EventCountry "IND"]
[SourceTitle "playchess.com"]
[Source "ChessBase"]
[SourceQuality "1"]
[TimeControl "5400+30"]

1. e4 {[%emt 0:00:44]} e5 {[%emt 0:00:00]} 2. Nf3 {[%emt 0:00:07]} Nc6 {[%emt 0:00:00]} 3. Bb5 {[%emt 0:00:04]} a6 {[%emt 0:00:00]} 4. Ba4 {[%emt 0:00:03]} Nf6 {[%emt 0:00:00]} 5. O-O {[%emt 0:00:06]} Be7 {[%emt 0:00:00]} 6. Re1 {[%emt 0:00:05]} b5 {[%emt 0:00:00]} 7. Bb3 {[%emt 0:00:05]} d6 {[%emt 0:00:08]} 8. c3 {[%emt 0:00:03]} O-O {[%emt 0:00:05]} 9. h3 {[%emt 0:00:03]} Na5 {[%emt 0:00:08]} 10. Bc2 {[%emt 0:00:06]} c5 {[%emt 0:00:04]} 11. d4 {[%emt 0:00:08]} Nd7 {[%emt 0:00:07]} 12. Nbd2 {[%emt 0:00:32]} exd4 {[%emt 0:00:19]} 13. cxd4 {[%emt 0:00:03]} Nc6 {[%emt 0:00:03]} 14. d5 {[%emt 0:01:45]} Nce5 {[%emt 0:00:05]} 15. a4 {[%emt 0:01:15]} Rb8 {[%emt 0:02:32]} 16. Nxe5 {[%emt 0:02:17]} Nxe5 {[%emt 0:00:48]} 17. axb5 {[%emt 0:00:14]} axb5 {[%emt 0:00:05]} 18. f4 {[%emt 0:00:30]} Ng6 {[%emt 0:00:06]} 19. Nf3 {[%emt 0:01:46]} Bh4 {[%emt 0:00:19]} 20. Nxh4 {[%emt 0:01:13]} Qxh4 {[%emt 0:00:35]} 21. e5 {[%emt 0:02:42]} Nxf4 {[%emt 0:34:48]} 22. Ra3 {[%emt 0:01:01]} Ng6 {[%emt 0:11:19]} 23. exd6 {[%emt 0:12:03]} Rb6 {[%emt 0:10:36]} 24. Be3 {[%emt 0:10:15]} Rxd6 {[%emt 0:01:55]} 25. Bf2 {[%emt 0:05:06]} Qg5 {[%emt 0:10:35]} 26. Rg3 {[%emt 0:02:24]} Qd8 {[%emt 0:00:51]} 27. Bxc5 {[%emt 0:01:46]} Rxd5 {[%emt 0:00:58]} 28. Rd3 {[%emt 0:00:11]} Rxd3 {[%emt 0:01:27]} 29. Bxd3 {[%emt 0:02:40]} Nf4 {[%emt 0:08:16]} 30. Bxf8 {[%emt 0:01:05]} Nxd3 {[%emt 0:00:25]} 31. Bc5 {[%emt 0:07:08]} Bf5 {[%emt 0:03:59]} 32. b4 {[%emt 0:03:49]} h6 {[%emt 0:01:09]} 33. Rf1 {[%emt 0:03:21]} 1/2-1/2

[Event "2nd Gujarat Open 2019"]
[Site "Ahmedabad, Gujarat"]
[Date "2019.09.28"]
[Round "9.11"]
[White "Lugovskoy, Maxim"]
[Black "Nikhil Magizhnan"]
[Result "1-0"]
[ECO "C00"]
[WhiteElo "2422"]
[BlackElo "2251"]
[Annotator "NA"]
[PlyCount "177"]
[EventDate "2019.09.22"]
[EventType "swiss"]
[EventCountry "IND"]
[SourceTitle "playchess.com"]
[Source "ChessBase"]
[SourceQuality "1"]
[TimeControl "5400+30"]

1. e4 {[%emt 0:03:34]} e6 {[%emt 0:04:31]} 2. Qe2 {[%emt 0:00:18]} c5 {[%emt 0:01:21]} 3. Nf3 {[%emt 0:00:12]} Nc6 {[%emt 0:00:23]} 4. c3 {[%emt 0:00:04]} e5 {[%emt 0:08:28]} 5. Qe3 {[%emt 0:00:44]} d6 {[%emt 0:17:41]} 6. d4 {[%emt 0:00:54]} g6 {[%emt 0:25:19]} 7. Na3 {[%emt 0:05:28]} cxd4 {[%emt 0:04:28]} 8. cxd4 {[%emt 0:00:08]} exd4 {[%emt 0:00:30]} 9. Nxd4 {[%emt 0:01:50]} Bg7 {[%emt 0:00:41]} 10. Bb5 {[%emt 0:08:23]} Nge7 {[%emt 0:02:46]} 11. Bd2 {[%emt 0:06:45]} O-O {[%emt 0:00:56]} 12. Bc3 {[%emt 0:06:09]} Qb6 {[%emt 0:10:38]} 13. Bxc6 {[%emt 0:02:01]} Nxc6 {[%emt 0:02:52]} 14. Nc4 {[%emt 0:04:31]} Qc5 {[%emt 0:02:07]} 15. Nxc6 {[%emt 0:01:48]} Bxc3+ {[%emt 0:12:27]} 16. Qxc3 {[%emt 0:02:32]} Qxc6 {[%emt 0:00:05]} 17. Qd4 {[%emt 0:01:13]} Be6 {[%emt 0:00:19]} 18. Ne3 {[%emt 0:00:39]} Qa6 {[%emt 0:00:30]} 19. h4 {[%emt 0:00:44]} h5 {[%emt 0:00:10]} 20. f3 {[%emt 0:01:20]} Qa5+ {[%emt 0:02:35]} 21. Kf2 {[%emt 0:00:06]} Rfd8 {[%emt 0:00:54]} 22. f4 {[%emt 0:01:05]} Qc5 {[%emt 0:00:45]} 23. Rhd1 {[%emt 0:00:04]} Rac8 {[%emt 0:00:29]} 24. Qf6 {[%emt 0:00:42]} Bg4 {[%emt 0:00:30]} 25. Rd5 {[%emt 0:02:06]} Qb6 {[%emt 0:00:18]} 26. Qd4 {[%emt 0:00:38]} Qxd4 27. Rxd4 {[%emt 0:00:07]} Be6 {[%emt 0:01:10]} 28. b3 {[%emt 0:00:07]} Rc5 {[%emt 0:00:24]} 29. Rad1 {[%emt 0:00:05]} Ra5 {[%emt 0:00:31]} 30. R1d2 {[%emt 0:00:05]} f6 {[%emt 0:00:40]} 31. Ke2 {[%emt 0:02:42]} Kf7 {[%emt 0:00:21]} 32. Kd1 {[%emt 0:00:03]} Ke7 {[%emt 0:00:22]} 33. Kc1 {[%emt 0:00:04]} Rc8+ {[%emt 0:00:41]} 34. Kb2 {[%emt 0:00:01]} Rc6 {[%emt 0:00:02]} 35. Nc2 {[%emt 0:01:01]} Rb6 {[%emt 0:01:03]} 36. R4d3 {[%emt 0:00:19]} Rc5 {[%emt 0:00:31]} 37. Nd4 {[%emt 0:00:07]} Bg4 {[%emt 0:00:23]} 38. Re3 {[%emt 0:02:00]} Kf7 {[%emt 0:00:28]} 39. Nc2 {[%emt 0:00:39]} Be6 {[%emt 0:00:25]} 40. Ne1 {[%emt 0:02:39]} a5 {[%emt 0:00:42]} 41. Rd4 {[%emt 0:01:08]} Rc7 {[%emt 0:00:30]} 42. Re2 {[%emt 0:00:36]} Bg4 {[%emt 0:00:21]} 43. Red2 {[%emt 0:00:05]} Ke7 {[%emt 0:00:28]} 44. Nc2 {[%emt 0:00:52]} Be6 {[%emt 0:00:42]} 45. Ne3 {[%emt 0:00:40]} Rc5 {[%emt 0:00:07]} 46. Re2 {[%emt 0:00:33]} Kf7 {[%emt 0:00:15]} 47. Rf2 {[%emt 0:02:39]} Ke7 {[%emt 0:00:48]} 48. Rf3 {[%emt 0:00:21]} Ra6 {[%emt 0:00:35]} 49. Rf2 {[%emt 0:06:07]} Rb6 {[%emt 0:00:07]} 50. Rf1 {[%emt 0:00:12]} Ra6 {[%emt 0:00:15]} 51. Rf3 {[%emt 0:00:04]} Rb6 {[%emt 0:00:53]} 52. Rg3 {[%emt 0:00:09]} Kf7 {[%emt 0:00:13]} 53. f5 {[%emt 0:00:07]} gxf5 {[%emt 0:00:29]} 54. exf5 {[%emt 0:00:02]} Bxf5 {[%emt 0:01:06]} 55. Nc4 {[%emt 0:00:05]} Rbc6 {[%emt 0:00:44]} 56. Nxd6+ {[%emt 0:01:01]} Kf8 {[%emt 0:00:15]} 57. Nxb7 {[%emt 0:01:56]} Rc2+ {[%emt 0:00:34]} 58. Ka3 {[%emt 0:00:04]} Bg4 {[%emt 0:00:33]} 59. Rd8+ {[%emt 0:01:41]} Kf7 {[%emt 0:00:27]} 60. Ra8 {[%emt 0:00:08]} Rc7 {[%emt 0:00:35]} 61. Nxa5 {[%emt 0:00:09]} Re2 {[%emt 0:00:10]} 62. Nc4 {[%emt 0:00:10]} f5 {[%emt 0:00:48]} 63. Rc3 {[%emt 0:00:52]} Rce7 {[%emt 0:00:29]} 64. g3 {[%emt 0:00:04]} Rh2 {[%emt 0:00:28]} 65. Rd3 {[%emt 0:00:18]} Ree2 {[%emt 0:00:31]} 66. Ra7+ {[%emt 0:00:33]} Kf6 {[%emt 0:00:35]} 67. Kb4 {[%emt 0:00:18]} Re6 {[%emt 0:00:32]} 68. Rd8 {[%emt 0:00:54]} Rh3 {[%emt 0:00:22]} 69. Rf8+ {[%emt 0:00:25]} Kg6 {[%emt 0:00:01]} 70. Rg8+ {[%emt 0:00:06]} Kf6 {[%emt 0:00:18]} 71. Rgg7 {[%emt 0:00:05]} Re8 {[%emt 0:01:13]} 72. Raf7+ {[%emt 0:01:15]} Ke6 {[%emt 0:00:02]} 73. Rb7 {[%emt 0:00:05]} Kf6 {[%emt 0:00:35]} 74. Rh7 {[%emt 0:00:20]} Kg6 {[%emt 0:00:21]} 75. Rhc7 {[%emt 0:00:07]} Re6 {[%emt 0:00:29]} 76. Ne5+ {[%emt 0:00:08]} Kf6 {[%emt 0:00:14]} 77. Nd7+ {[%emt 0:00:03]} Kf7 {[%emt 0:00:17]} 78. Nc5+ {[%emt 0:00:05]} Kf6 {[%emt 0:00:06]} 79. Nxe6 {[%emt 0:00:29]} Kxe6 {[%emt 0:00:02]} 80. Rc3 {[%emt 0:00:29]} f4 {[%emt 0:00:09]} 81. gxf4 {[%emt 0:00:10]} Rxh4 {[%emt 0:00:04]} 82. a4 {[%emt 0:00:11]} Bf5 {[%emt 0:00:09]} 83. Rc6+ {[%emt 0:00:07]} Kd5 {[%emt 0:00:05]} 84. Rc5+ {[%emt 0:00:12]} Ke4 {[%emt 0:00:02]} 85. Re7+ {[%emt 0:00:06]} Kxf4 {[%emt 0:00:06]} 86. Rc4+ {[%emt 0:00:04]} Kg5 {[%emt 0:00:02]} 87. Rg7+ {[%emt 0:00:05]} Kh6 {[%emt 0:00:14]} 88. Rxh4 {[%emt 0:00:04]} Kxg7 {[%emt 0:00:04]} 89. Rxh5 {[%emt 0:00:03]} 1-0

[Event "2nd Gujarat Open 2019"]
[Site "Ahmedabad, Gujarat"]
[Date "2019.09.28"]
[Round "9.12"]
[White "Hesham, Abdelrahman"]
[Black "Shailesh, Dravid"]
[Result "1-0"]
[ECO "A45"]
[WhiteElo "2396"]
[BlackElo "2299"]
[Annotator "NA"]
[PlyCount "137"]
[EventDate "2019.09.22"]
[EventType "swiss"]
[EventCountry "IND"]
[SourceTitle "playchess.com"]
[Source "ChessBase"]
[SourceQuality "1"]
[TimeControl "5400+30"]

1. d4 {[%emt 0:00:00]} Nf6 {[%emt 0:00:00]} 2. Bf4 {[%emt 0:00:00]} e6 {[%emt 0:00:47]} 3. Nf3 {[%emt 0:00:00]} c5 {[%emt 0:00:08]} 4. e3 {[%emt 0:00:00]} Nc6 {[%emt 0:00:11]} 5. Nbd2 {[%emt 0:00:52]} Be7 {[%emt 0:01:24]} 6. h3 {[%emt 0:00:18]} O-O {[%emt 0:01:22]} 7. c3 {[%emt 0:00:19]} b6 {[%emt 0:00:31]} 8. Bd3 {[%emt 0:01:05]} Bb7 {[%emt 0:00:58]} 9. e4 {[%emt 0:04:49]} cxd4 {[%emt 0:00:33]} 10. cxd4 {[%emt 0:00:39]} Nb4 {[%emt 0:01:36]} 11. Bb1 {[%emt 0:01:05]} Ba6 {[%emt 0:01:09]} 12. Nb3 {[%emt 0:00:12]} d5 {[%emt 0:01:50]} 13. e5 {[%emt 0:00:07]} Ne4 {[%emt 0:00:18]} 14. a3 {[%emt 0:00:11]} Nc6 {[%emt 0:01:48]} 15. Nbd2 {[%emt 0:03:08]} f5 {[%emt 0:05:27]} 16. exf6 {[%emt 0:00:38]} Bxf6 {[%emt 0:03:00]} 17. Qa4 {[%emt 0:12:02]} Nxd2 {[%emt 0:15:45]} 18. Bxd2 {[%emt 0:03:17]} Qc8 {[%emt 0:00:54]} 19. Bc3 {[%emt 0:02:53]} e5 {[%emt 0:07:16]} 20. dxe5 {[%emt 0:05:08]} Nxe5 {[%emt 0:02:29]} 21. Nxe5 {[%emt 0:00:12]} Bxe5 {[%emt 0:00:08]} 22. Bxh7+ {[%emt 0:00:10]} Kxh7 {[%emt 0:00:59]} 23. Bxe5 {[%emt 0:00:08]} Re8 {[%emt 0:08:02]} 24. Qh4+ {[%emt 0:01:55]} Kg8 {[%emt 0:01:01]} 25. Qg5 {[%emt 0:00:11]} Rxe5+ {[%emt 0:03:48]} 26. Qxe5 {[%emt 0:00:05]} Qc6 {[%emt 0:00:30]} 27. Kd2 {[%emt 0:04:06]} Re8 {[%emt 0:01:34]} 28. Qc3 {[%emt 0:03:58]} Qh6+ {[%emt 0:04:42]} 29. Kd1 {[%emt 0:01:17]} Be2+ {[%emt 0:01:25]} 30. Kc2 {[%emt 0:00:35]} Qg6+ {[%emt 0:01:49]} 31. Kd2 {[%emt 0:01:09]} Qg5+ {[%emt 0:00:08]} 32. Kc2 {[%emt 0:00:55]} Qf5+ {[%emt 0:00:05]} 33. Kd2 {[%emt 0:00:41]} Qxf2 {[%emt 0:02:46]} 34. Kc1 {[%emt 0:03:25]} d4 {[%emt 0:07:51]} 35. Qb3+ {[%emt 0:02:07]} Kh8 {[%emt 0:00:10]} 36. Kb1 {[%emt 0:00:43]} Rc8 {[%emt 0:00:52]} 37. g4 {[%emt 0:00:48]} Qh4 {[%emt 0:10:28]} 38. Ra2 {[%emt 0:04:14]} Qh7+ {[%emt 0:03:47]} 39. Ka1 {[%emt 0:00:11]} Qh6 {[%emt 0:00:09]} 40. Rb1 {[%emt 0:00:16]} d3 {[%emt 0:03:54]} 41. Qb5 {[%emt 0:01:52]} Qe6 {[%emt 0:02:49]} 42. b3 {[%emt 0:00:35]} Rc5 {[%emt 0:02:54]} 43. Qb4 {[%emt 0:01:44]} Qf6+ {[%emt 0:00:23]} 44. Rab2 {[%emt 0:00:10]} a5 {[%emt 0:00:30]} 45. Qe4 {[%emt 0:00:30]} Qc3 {[%emt 0:01:25]} 46. Ka2 {[%emt 0:01:02]} Re5 {[%emt 0:00:10]} 47. Qf4 {[%emt 0:01:11]} Rd5 {[%emt 0:01:23]} 48. Rc1 {[%emt 0:00:15]} Qe5 {[%emt 0:01:41]} 49. Qxe5 {[%emt 0:03:17]} Rxe5 {[%emt 0:00:01]} 50. Rc6 {[%emt 0:00:10]} b5 {[%emt 0:00:34]} 51. Rd2 {[%emt 0:00:22]} b4 {[%emt 0:00:47]} 52. Rc4 {[%emt 0:00:54]} Rb5 {[%emt 0:00:10]} 53. h4 {[%emt 0:01:20]} Kh7 {[%emt 0:00:17]} 54. Kb2 {[%emt 0:00:05]} Kg6 {[%emt 0:00:10]} 55. axb4 {[%emt 0:00:20]} axb4 {[%emt 0:00:03]} 56. Kc1 {[%emt 0:00:13]} Ra5 {[%emt 0:01:01]} 57. Rxb4 {[%emt 0:00:16]} Ra1+ {[%emt 0:00:10]} 58. Kb2 {[%emt 0:00:04]} Rh1 {[%emt 0:00:30]} 59. g5 {[%emt 0:00:30]} Kh5 {[%emt 0:00:00]} 60. Kc3 {[%emt 0:01:11]} Rc1+ {[%emt 0:00:15]} 61. Kb2 {[%emt 0:00:30]} Rh1 {[%emt 0:00:18]} 62. Rd4 {[%emt 0:00:01]} Rxh4 {[%emt 0:00:24]} 63. Rxh4+ {[%emt 0:00:06]} Kxh4 {[%emt 0:00:03]} 64. b4 {[%emt 0:00:12]} Kxg5 {[%emt 0:00:03]} 65. b5 {[%emt 0:00:05]} Kf4 {[%emt 0:01:49]} 66. b6 {[%emt 0:00:04]} Bf3 {[%emt 0:00:02]} 67. Rxd3 {[%emt 0:00:53]} Bc6 {[%emt 0:00:30]} 68. Rd6 {[%emt 0:00:05]} Bh1 {[%emt 0:00:34]} 69. Rg6 {[%emt 0:00:08]} 1-0

[Event "2nd Gujarat Open 2019"]
[Site "Ahmedabad, Gujarat"]
[Date "2019.09.28"]
[Round "9.13"]
[White "Srihari L R"]
[Black "Eraschenkov, Denis"]
[Result "1/2-1/2"]
[ECO "E70"]
[WhiteElo "2283"]
[BlackElo "2390"]
[Annotator "NA"]
[PlyCount "61"]
[EventDate "2019.09.22"]
[EventType "swiss"]
[EventCountry "IND"]
[SourceTitle "playchess.com"]
[Source "ChessBase"]
[SourceQuality "1"]
[TimeControl "5400+30"]

1. d4 {[%emt 0:00:00]} Nf6 {[%emt 0:00:00]} 2. c4 {[%emt 0:00:03]} g6 {[%emt 0:00:00]} 3. Nc3 {[%emt 0:00:09]} Bg7 {[%emt 0:00:05]} 4. e4 {[%emt 0:00:07]} O-O {[%emt 0:00:13]} 5. h3 {[%emt 0:00:36]} c6 {[%emt 0:00:11]} 6. Bd3 {[%emt 0:00:59]} d5 {[%emt 0:01:28]} 7. cxd5 {[%emt 0:02:04]} cxd5 {[%emt 0:00:17]} 8. e5 {[%emt 0:00:09]} Ne8 {[%emt 0:01:31]} 9. Nge2 {[%emt 0:08:11]} f6 {[%emt 0:07:10]} 10. f4 {[%emt 0:02:59]} fxe5 {[%emt 0:04:41]} 11. fxe5 {[%emt 0:05:03]} Nc6 {[%emt 0:00:17]} 12. Be3 {[%emt 0:05:39]} Nc7 {[%emt 0:09:05]} 13. Qd2 {[%emt 0:06:02]} Bf5 {[%emt 0:03:09]} 14. Bxf5 {[%emt 0:08:55]} Rxf5 {[%emt 0:00:17]} 15. h4 {[%emt 0:00:18]} Qd7 {[%emt 0:01:42]} 16. O-O-O {[%emt 0:05:02]} Raf8 {[%emt 0:25:34]} 17. Ng3 {[%emt 0:08:10]} R5f7 {[%emt 0:00:16]} 18. h5 {[%emt 0:00:37]} Qg4 {[%emt 0:02:05]} 19. Nce2 {[%emt 0:06:14]} gxh5 {[%emt 0:03:53]} 20. Rxh5 {[%emt 0:02:25]} Ne6 {[%emt 0:04:42]} 21. Kb1 {[%emt 0:05:21]} Rf1 {[%emt 0:02:22]} 22. Nxf1 {[%emt 0:04:32]} Qxh5 {[%emt 0:00:10]} 23. Nfg3 {[%emt 0:00:05]} Qg6+ {[%emt 0:01:59]} 24. Qd3 {[%emt 0:03:39]} Qxd3+ {[%emt 0:03:14]} 25. Rxd3 {[%emt 0:00:06]} Kf7 {[%emt 0:05:20]} 26. Rd1 {[%emt 0:02:47]} Na5 {[%emt 0:05:50]} 27. b3 {[%emt 0:01:18]} Nc6 {[%emt 0:00:17]} 28. Rh1 {[%emt 0:01:07]} Kg8 {[%emt 0:00:09]} 29. a3 {[%emt 0:01:07]} Rf7 {[%emt 0:01:11]} 30. Rh5 {[%emt 0:00:54]} Nf8 {[%emt 0:01:34]} 31. Ng1 1/2-1/2